fUST/lending_fUST_20250725
["ID","MTS","AMOUNT","RATE_DAILY","PERIOD"]
[374636876,1753391444739,-460.0,0.00019452,2]
[374636877,1753391444749,-585.35500086,0.00019452,2]
[374636878,1753391444759,-800.15,0.00019452,2]
[374636879,1753391444769,-1011.87,0.00019452,2]
[374636880,1753391444779,-460.0,0.00019452,2]
[374636881,1753391444788,-758.05,0.00019452,2]
[374636882,1753391444798,-460.0,0.00019452,2]
[374636883,1753391444807,-1478.25,0.00019452,2]
[374636884,1753391444817,-460.0,0.00019452,2]
[374636885,1753391444827,-889.01,0.00019452,2]
[374636886,1753391444838,-290.78393118,0.00019452,2]
[374636887,1753391444847,-460.0,0.00019452,2]
[374636888,1753391444857,-460.0,0.00019452,2]
[374636889,1753391444867,-460.0,0.00019452,2]
[374636890,1753391444876,-460.0,0.00019452,2]
[374636891,1753391444886,-2167.5,0.00019452,2]
[374636892,1753391444896,-460.0,0.00019452,2]
[374636893,1753391444907,-460.0,0.00019452,2]
[374636894,1753391444917,-460.0,0.00019452,2]
[374636895,1753391444927,-460.0,0.00019452,2]
[374636896,1753391444937,-3029.47,0.00019452,2]
[374636897,1753391444946,-460.0,0.00019452,2]
[374636898,1753391444955,-460.0,0.00019452,2]
[374636899,1753391444965,-733.79,0.00019452,2]
[374636900,1753391444975,-460.0,0.00019452,2]
[374636901,1753391444984,-460.0,0.00019452,2]
[374636902,1753391444994,-524.72,0.00019452,2]
[374636903,1753391445003,-962.08,0.00019452,2]
[374636904,1753391445013,-478.66,0.00019452,2]
[374636905,1753391445025,-2178.62,0.00019452,2]
[374636906,1753391445035,-460.0,0.00019452,2]
[374636907,1753391445044,-2278.63,0.00019452,2]
[374636908,1753391445054,-460.0,0.00019452,2]
[374636909,1753391445064,-1990.71,0.00019452,2]
[374636910,1753391445074,-460.0,0.00019452,2]
[374636911,1753391445083,-495.13,0.00019452,2]
[374636912,1753391445093,-937.43,0.00019452,2]
[374636913,1753391445103,-460.0,0.00019452,2]
[374636914,1753391445112,-1939.18,0.00019452,2]
[374636915,1753391445122,-454.00162627,0.00019452,2]
[374636916,1753391445131,-460.0,0.00019452,2]
[374636917,1753391445141,-1099.5,0.00019452,2]
[374636918,1753391445150,-753.09,0.00019452,2]
[374636919,1753391445160,-460.0,0.00019452,2]
[374636920,1753391445169,-1060.93,0.00019452,2]
[374636921,1753391445179,-456.79650098,0.00019452,2]
[374636922,1753391445189,-114.17513646,0.00019452,2]
[374636924,1753391445354,-345.82486354,0.00019452,2]
[374636925,1753391445364,-460.0,0.00019452,2]
[374636926,1753391445374,-416.19036572,0.00019452,2]
[374636928,1753391445386,-43.80963428,0.00019452,2]
[374636929,1753391445481,-1235.85,0.00019452,2]
[374636930,1753391445492,-1001.77,0.00019452,2]
[374636931,1753391445502,-460.0,0.00019452,2]
[374636932,1753391445513,-460.0,0.00019452,2]
[374636933,1753391445525,-368.04413581,0.00019452,2]
[374636934,1753391445535,-3240.25,0.00019452,2]
[374636935,1753391445545,-460.0,0.00019452,2]
[374636936,1753391445554,-460.0,0.00019452,2]
[374636937,1753391445564,-460.0,0.00019452,2]
[374636939,1753391445574,-565.89,0.00019452,2]
[374636940,1753391445583,-968.55,0.00019452,2]
[374636941,1753391445593,-442.98552897,0.00019452,2]
[374636942,1753391445603,-460.0,0.00019452,2]
[374636943,1753391445612,-460.0,0.00019452,2]
[374636944,1753391445623,-736.84,0.00019452,2]
[374636945,1753391445636,-460.0,0.00019452,2]
[374636946,1753391445645,-460.0,0.00019452,2]
[374636947,1753391445655,-704.64,0.00019452,2]
[374636948,1753391445664,-460.0,0.00019452,2]
[374636949,1753391445675,-460.0,0.00019452,2]
[374636950,1753391445684,-460.0,0.00019452,2]
[374636951,1753391445694,-460.0,0.00019452,2]
[374636952,1753391445707,-460.0,0.00019452,2]
[374636953,1753391445718,-460.0,0.00019452,2]
[374636954,1753391445727,-669.74,0.00019452,2]
[374636955,1753391445737,-460.0,0.00019452,2]
[374636956,1753391445746,-876.65,0.00019452,2]
[374636957,1753391445756,-820.48,0.00019452,2]
[374636958,1753391445766,-7765.7,0.00019452,2]
[374636959,1753391445778,-655.02,0.00019452,2]
[374636960,1753391445788,-460.0,0.00019452,2]
[374636961,1753391445797,-2253.54,0.00019452,2]
[374636962,1753391445807,-659.75,0.00019452,2]
[374636963,1753391445816,-794.39,0.00019452,2]
[374636964,1753391445826,-587.04,0.00019452,2]
[374636965,1753391445835,-460.0,0.00019452,2]
[374636966,1753391445845,-460.0,0.00019452,2]
[374636967,1753391445855,-2537.27,0.00019452,2]
[374636968,1753391445864,-460.0,0.00019452,2]
[374636969,1753391445874,-460.0,0.00019452,2]
[374636970,1753391445883,-460.0,0.00019452,2]
[374636972,1753391445893,-460.0,0.00019452,2]
[374636974,1753391445902,-460.0,0.00019452,2]
[374636976,1753391445911,-460.0,0.00019452,2]
[374636978,1753391445920,-971.59,0.00019452,2]
[374636980,1753391445930,-1259.23,0.00019452,2]
[374636982,1753391445939,-3157.21,0.00019452,2]
[374636983,1753391445949,-461.92637518,0.00019452,2]
[374636985,1753391445958,-460.0,0.00019452,2]
[374636987,1753391445968,-460.0,0.00019452,2]
[374636989,1753391445978,-595.54,0.00019452,2]
[374636991,1753391445987,-460.0,0.00019452,2]
[374636993,1753391445996,-1109.22,0.00019452,2]
[374636995,1753391446006,-460.0,0.00019452,2]
[374636997,1753391446015,-460.0,0.00019452,2]
[374636999,1753391446026,-460.0,0.00019452,2]
[374637001,1753391446036,-252.22672606,0.00019452,2]
[374637003,1753391446046,-3057.5,0.00019452,2]
[374637005,1753391446055,-643.19,0.00019452,2]
[374637007,1753391446065,-945.97,0.00019452,2]
[374637009,1753391446074,-460.0,0.00019452,2]
[374637012,1753391446084,-573.72,0.00019452,2]
[374637015,1753391446094,-2681.78,0.00019452,2]
[374637018,1753391446103,-460.0,0.00019452,2]
[374637021,1753391446114,-2884.63,0.00019452,2]
[374637024,1753391446123,-460.0,0.00019452,2]
[374637026,1753391446132,-460.0,0.00019452,2]
[374637028,1753391446142,-460.0,0.00019452,2]
[374637030,1753391446151,-791.02,0.00019452,2]
[374637033,1753391446165,-460.0,0.00019452,2]
[374637035,1753391446186,-460.0,0.00019452,2]
[374637038,1753391446201,-460.0,0.00019452,2]
[374637040,1753391446219,-305.08706185,0.00019452,2]
[374637042,1753391446237,-460.0,0.00019452,2]
[374637043,1753391446255,-460.0,0.00019452,2]
[374637044,1753391446273,-460.0,0.00019452,2]
[374637045,1753391446287,-464.58,0.00019452,2]
[374637046,1753391446304,-460.0,0.00019452,2]
[374637047,1753391446320,-816.82,0.00019452,2]
[374637048,1753391446332,-564.3,0.00019452,2]
[374637049,1753391446348,-504.98,0.00019452,2]
[374637050,1753391446365,-460.0,0.00019452,2]
[374637051,1753391446382,-161.00759347,0.00019452,2]
[374637053,1753391446398,-5720.52,0.00019452,2]
[374637056,1753391446411,-500.0,0.00019473,2]
[374637058,1753391446424,-500.0,0.00019473,2]
[374637060,1753391446442,-500.0,0.00019473,2]
[374637062,1753391446454,-500.0,0.00019473,2]
[374637065,1753391446470,-500.0,0.00019473,2]
[374637067,1753391446484,-151.0,0.000195,2]
[374637068,1753391446496,-151.0,0.000196,2]
[374637069,1753391446510,-429.7456075,0.000196,2]
[374637070,1753391446526,-429.7456075,0.000196,2]
[374637071,1753391446540,-429.7456075,0.000196,2]
[374637072,1753391446554,-429.7456075,0.000196,2]
[374637073,1753391446569,-932.44538362,0.00019656,2]
[374637074,1753391446585,-1000.0,0.00019721,2]
[374637075,1753391446599,-787.57565052,0.00019721,2]
[374637076,1753391446613,-1000.0,0.00019721,2]
[374637077,1753391446628,-1000.0,0.00019721,2]
[374637078,1753391446641,-1000.0,0.00019721,2]
[374637079,1753391446655,-500.0,0.00019726,2]
[374637080,1753391446670,-151.0,0.00019726,2]
[374637081,1753391446683,-151.0,0.00019726,2]
[374637082,1753391446697,-151.0,0.00019726,2]
[374637083,1753391446714,-500.0,0.00019726,2]
[374637084,1753391446729,-151.0,0.00019726,2]
[374637085,1753391446742,-500.0,0.00019726,2]
[374637086,1753391446756,-982.0,0.00019726,2]
[374637087,1753391446771,-255.98645579,0.00019726,2]
[374637088,1753391446785,-151.0,0.00019726,2]
[374637089,1753391446799,-151.0,0.00019726,2]
[374637090,1753391446813,-500.0,0.00019726,2]
[374637091,1753391446827,-151.0,0.00019726,2]
[374637092,1753391446841,-876.0,0.00019726,2]
[374637093,1753391446855,-500.0,0.00019726,2]
[374637094,1753391446869,-500.0,0.00019726,2]
[374637095,1753391446884,-198.0,0.00019726,2]
[374637096,1753391446894,-151.0,0.00019726,2]
[374637097,1753391446903,-460.0,0.00019726,2]
[374637098,1753391446913,-168.75057363,0.00019726,2]
[374637099,1753391446923,-460.0,0.00019726,2]
[374637100,1753391446933,-460.0,0.00019726,2]
[374637101,1753391446942,-460.0,0.00019726,2]
[374637102,1753391446952,-488.66253286,0.00019726,2]
[374637103,1753391446961,-460.0,0.00019726,2]
[374637104,1753391446971,-460.0,0.00019726,2]
[374637105,1753391446980,-460.0,0.00019726,2]
[374637106,1753391446990,-165.91232162,0.00019726,2]
[374637107,1753391446999,-493.47,0.00019726,2]
[374637108,1753391447009,-472.46067296,0.00019726,2]
[374637109,1753391447019,-460.0,0.00019726,2]
[374637110,1753391447028,-460.0,0.00019726,2]
[374637111,1753391447212,-460.0,0.00019726,2]
[374637112,1753391447235,-460.0,0.00019726,2]
[374637113,1753391447248,-460.0,0.00019726,2]
[374637114,1753391447257,-259.50358371,0.00019726,2]
[374637115,1753391447267,-175.21622718,0.00019726,2]
[374637116,1753391447278,-460.0,0.00019726,2]
[374637117,1753391447287,-217.12036078,0.00019726,2]
[374637118,1753391447297,-460.0,0.00019726,2]
[374637119,1753391447307,-460.0,0.00019726,2]
[374637120,1753391447317,-460.0,0.00019726,2]
[374637121,1753391447327,-460.0,0.00019726,2]
[374637122,1753391447337,-460.0,0.00019726,2]
[374637123,1753391447347,-670.24,0.00019726,2]
[374637124,1753391447356,-460.0,0.00019726,2]
[374637125,1753391447366,-460.0,0.00019726,2]
[374637126,1753391447376,-460.0,0.00019726,2]
[374637127,1753391447385,-460.0,0.00019726,2]
[374637128,1753391447395,-460.0,0.00019726,2]
[374637129,1753391447404,-460.0,0.00019726,2]
[374637130,1753391447413,-772.42,0.00019726,2]
[374637131,1753391447423,-492.13,0.00019726,2]
[374637132,1753391447432,-460.0,0.00019726,2]
[374637133,1753391447442,-1114.52,0.00019726,2]
[374637134,1753391447451,-196.70364228,0.00019726,2]
[374637135,1753391447461,-460.0,0.00019726,2]
[374637136,1753391447470,-460.0,0.00019726,2]
[374637137,1753391447480,-460.0,0.00019726,2]
[374637138,1753391447489,-460.0,0.00019726,2]
[374637139,1753391447499,-460.0,0.00019726,2]
[374637140,1753391447508,-460.0,0.00019726,2]
[374637141,1753391447518,-460.0,0.00019726,2]
[374637142,1753391447527,-1464.53,0.00019726,2]
[374637143,1753391447537,-505.06,0.00019726,2]
[374637144,1753391447546,-460.0,0.00019726,2]
[374637145,1753391447556,-460.0,0.00019726,2]
[374637146,1753391447565,-405.32236307,0.00019726,2]
[374637147,1753391447574,-460.0,0.00019726,2]
[374637148,1753391447584,-588.61,0.00019726,2]
[374637149,1753391447593,-668.66,0.00019726,2]
[374637150,1753391447603,-460.0,0.00019726,2]
[374637151,1753391447612,-460.0,0.00019726,2]
[374637152,1753391447622,-460.0,0.00019726,2]
[374637153,1753391447636,-460.0,0.00019726,2]
[374637154,1753391447646,-460.0,0.00019726,2]
[374637155,1753391447655,-460.0,0.00019726,2]
[374637156,1753391447665,-460.0,0.00019726,2]
[374637157,1753391447675,-460.0,0.00019726,2]
[374637158,1753391447686,-460.0,0.00019726,2]
[374637159,1753391447696,-460.0,0.00019726,2]
[374637160,1753391447706,-460.0,0.00019726,2]
[374637161,1753391447717,-460.0,0.00019726,2]
[374637162,1753391447726,-814.1,0.00019726,2]
[374637163,1753391447736,-460.0,0.00019726,2]
[374637164,1753391447746,-460.0,0.00019726,2]
[374637165,1753391447756,-460.0,0.00019726,2]
[374637166,1753391447765,-460.0,0.00019726,2]
[374637167,1753391447775,-460.0,0.00019726,2]
[374637168,1753391447785,-1203.24,0.00019726,2]
[374637169,1753391447794,-460.0,0.00019726,2]
[374637170,1753391447803,-460.0,0.00019726,2]
[374637171,1753391447813,-597.54313279,0.00019726,2]
[374637172,1753391447823,-477.87,0.00019726,2]
[374637173,1753391447832,-460.0,0.00019726,2]
[374637174,1753391447842,-480.4,0.00019726,2]
[374637175,1753391447851,-460.0,0.00019726,2]
[374637176,1753391447861,-460.0,0.00019726,2]
[374637177,1753391447870,-460.0,0.00019726,2]
[374637178,1753391447880,-460.0,0.00019726,2]
[374637179,1753391447890,-582.47,0.00019726,2]
[374637180,1753391447900,-460.0,0.00019726,2]
[374637181,1753391447910,-511.09,0.00019726,2]
[374637182,1753391447920,-460.0,0.00019726,2]
[374637183,1753391447929,-406.70900576,0.00019726,2]
[374637184,1753391447940,-460.0,0.00019726,2]
[374637185,1753391447949,-460.0,0.00019726,2]
[374637186,1753391447959,-460.0,0.00019726,2]
[374637187,1753391447969,-751.55,0.00019726,2]
[374637188,1753391447980,-460.0,0.00019726,2]
[374637189,1753391447991,-460.0,0.00019726,2]
[374637190,1753391448002,-519.93,0.00019726,2]
[374637191,1753391448011,-460.0,0.00019726,2]
[374637192,1753391448021,-460.0,0.00019726,2]
[374637193,1753391448031,-460.0,0.00019726,2]
[374637194,1753391448040,-460.0,0.00019726,2]
[374637195,1753391448050,-460.0,0.00019726,2]
[374637196,1753391448059,-460.0,0.00019726,2]
[374637197,1753391448069,-460.0,0.00019726,2]
[374637198,1753391448078,-460.0,0.00019726,2]
[374637199,1753391448088,-460.0,0.00019726,2]
[374637200,1753391448098,-460.0,0.00019726,2]
[374637201,1753391448108,-460.0,0.00019726,2]
[374637202,1753391448117,-460.0,0.00019726,2]
[374637203,1753391448127,-460.0,0.00019726,2]
[374637204,1753391448136,-800.15,0.00019726,2]
[374637205,1753391448146,-1011.87,0.00019726,2]
[374637206,1753391448156,-460.0,0.00019726,2]
[374637207,1753391448166,-151.0,0.00019726,2]
[374637208,1753391448176,-758.05,0.00019726,2]
[374637209,1753391448185,-460.0,0.00019726,2]
[374637210,1753391448195,-1478.25,0.00019726,2]
[374637211,1753391448204,-460.0,0.00019726,2]
[374637212,1753391448214,-151.0,0.00019726,2]
[374637213,1753391448224,-151.0,0.00019726,2]
[374637214,1753391448234,-889.01,0.00019726,2]
[374637215,1753391448243,-353.76254315,0.00019726,2]
[374637216,1753391448252,-460.0,0.00019726,2]
[374637217,1753391448262,-460.0,0.00019726,2]
[374637218,1753391448272,-575.41643619,0.00019726,2]
[374637219,1753391448282,-151.0,0.00019726,2]
[374637220,1753391448292,-2167.5,0.00019726,2]
[374637221,1753391448302,-151.0,0.00019726,2]
[374637222,1753391448311,-460.0,0.00019726,2]
[374637223,1753391448323,-151.0,0.00019726,2]
[374637224,1753391448333,-460.0,0.00019726,2]
[374637225,1753391448343,-460.0,0.00019726,2]
[374637226,1753391448353,-3029.47,0.00019726,2]
[374637227,1753391448363,-483.51803398,0.00019726,2]
[374637228,1753391448373,-460.0,0.00019726,2]
[374637229,1753391448383,-460.0,0.00019726,2]
[374637230,1753391448392,-733.79,0.00019726,2]
[374637231,1753391448403,-460.0,0.00019726,2]
[374637232,1753391448413,-460.0,0.00019726,2]
[374637233,1753391448423,-524.72,0.00019726,2]
[374637234,1753391448433,-962.08,0.00019726,2]
[374637235,1753391448442,-478.66,0.00019726,2]
[374637236,1753391448452,-151.0,0.00019726,2]
[374637237,1753391448462,-2178.62,0.00019726,2]
[374637238,1753391448471,-151.0,0.00019726,2]
[374637239,1753391448481,-151.0,0.00019726,2]
[374637240,1753391448490,-312.11058078,0.00019726,2]
[374637241,1753391448500,-2278.63,0.00019726,2]
[374637242,1753391448510,-460.0,0.00019726,2]
[374637243,1753391448519,-1990.71,0.00019726,2]
[374637244,1753391448530,-460.0,0.00019726,2]
[374637245,1753391448539,-495.13,0.00019726,2]
[374637246,1753391448549,-151.0,0.00019726,2]
[374637247,1753391448559,-937.43,0.00019726,2]
[374637248,1753391448568,-460.0,0.00019726,2]
[374637249,1753391448578,-1939.18,0.00019726,2]
[374637250,1753391448588,-460.0,0.00019726,2]
[374637251,1753391448598,-1099.5,0.00019726,2]
[374637252,1753391448608,-753.09,0.00019726,2]
[374637253,1753391448618,-151.0,0.00019726,2]
[374637254,1753391448630,-460.0,0.00019726,2]
[374637255,1753391448640,-1060.93,0.00019726,2]
[374637256,1753391448650,-460.0,0.00019726,2]
[374637257,1753391448659,-464.35056706,0.00019726,2]
[374637258,1753391448670,-460.0,0.00019726,2]
[374637259,1753391448680,-1235.85,0.00019726,2]
[374637260,1753391448690,-1001.77,0.00019726,2]
[374637261,1753391448699,-151.0,0.00019726,2]
[374637262,1753391448713,-460.0,0.00019726,2]
[374637263,1753391448723,-151.0,0.00019726,2]
[374637264,1753391448733,-460.0,0.00019726,2]
[374637265,1753391448744,-3240.25,0.00019726,2]
[374637266,1753391448754,-460.0,0.00019726,2]
[374637267,1753391448764,-460.0,0.00019726,2]
[374637268,1753391448775,-386.86954409,0.00019726,2]
[374637269,1753391448784,-565.89,0.00019726,2]
[374637270,1753391448794,-968.55,0.00019726,2]
[374637271,1753391448804,-460.0,0.00019726,2]
[374637272,1753391448813,-736.84,0.00019726,2]
[374637273,1753391448823,-460.0,0.00019726,2]
[374637274,1753391448833,-704.64,0.00019726,2]
[374637275,1753391448843,-460.0,0.00019726,2]
[374637276,1753391448852,-460.0,0.00019726,2]
[374637277,1753391448862,-460.0,0.00019726,2]
[374637278,1753391448872,-460.0,0.00019726,2]
[374637279,1753391448882,-460.0,0.00019726,2]
[374637280,1753391448891,-151.0,0.00019726,2]
[374637281,1753391448902,-669.74,0.00019726,2]
[374637282,1753391448912,-460.0,0.00019726,2]
[374637283,1753391448921,-876.65,0.00019726,2]
[374637284,1753391448930,-820.48,0.00019726,2]
[374637285,1753391448940,-7765.7,0.00019726,2]
[374637286,1753391448949,-151.0,0.00019726,2]
[374637287,1753391448959,-655.02,0.00019726,2]
[374637288,1753391448969,-460.0,0.00019726,2]
[374637289,1753391448978,-2253.54,0.00019726,2]
[374637290,1753391448988,-659.75,0.00019726,2]
[374637291,1753391448997,-794.39,0.00019726,2]
[374637292,1753391449007,-587.04,0.00019726,2]
[374637293,1753391449017,-460.0,0.00019726,2]
[374637294,1753391449028,-2537.27,0.00019726,2]
[374637295,1753391449038,-460.0,0.00019726,2]
[374637296,1753391449047,-460.0,0.00019726,2]
[374637297,1753391449057,-460.0,0.00019726,2]
[374637298,1753391449067,-460.0,0.00019726,2]
[374637299,1753391449076,-151.0,0.00019726,2]
[374637300,1753391449086,-460.0,0.00019726,2]
[374637301,1753391449096,-460.0,0.00019726,2]
[374637302,1753391449105,-151.387848,0.00019726,2]
[374637303,1753391449115,-971.59,0.00019726,2]
[374637304,1753391449125,-1259.23,0.00019726,2]
[374637305,1753391449134,-3157.21,0.00019726,2]
[374637306,1753391449144,-151.0,0.00019726,2]
[374637307,1753391449154,-460.0,0.00019726,2]
[374637308,1753391449164,-214.72,0.00019726,2]
[374637309,1753391449174,-460.0,0.00019726,2]
[374637310,1753391449183,-151.0,0.00019726,2]
[374637311,1753391449193,-1109.22,0.00019726,2]
[374637312,1753391449203,-460.0,0.00019726,2]
[374637313,1753391449213,-460.0,0.00019726,2]
[374637314,1753391449223,-151.0,0.00019726,2]
[374637315,1753391449233,-3057.5,0.00019726,2]
[374637316,1753391449243,-643.19,0.00019726,2]
[374637317,1753391449253,-945.97,0.00019726,2]
[374637318,1753391449262,-460.0,0.00019726,2]
[374637319,1753391449272,-573.72,0.00019726,2]
[374637320,1753391449281,-2681.78,0.00019726,2]
[374637321,1753391449291,-460.0,0.00019726,2]
[374637322,1753391449301,-460.0,0.00019726,2]
[374637323,1753391449311,-2884.63,0.00019726,2]
[374637324,1753391449323,-460.0,0.00019726,2]
[374637325,1753391449333,-791.02,0.00019726,2]
[374637326,1753391449343,-460.0,0.00019726,2]
[374637327,1753391449352,-460.0,0.00019726,2]
[374637328,1753391449362,-460.0,0.00019726,2]
[374637329,1753391449372,-460.0,0.00019726,2]
[374637330,1753391449383,-460.0,0.00019726,2]
[374637331,1753391449392,-460.0,0.00019726,2]
[374637332,1753391449402,-464.58,0.00019726,2]
[374637333,1753391449412,-460.0,0.00019726,2]
[374637334,1753391449422,-816.82,0.00019726,2]
[374637335,1753391449432,-564.3,0.00019726,2]
[374637336,1753391449441,-504.98,0.00019726,2]
[374637337,1753391449451,-467.95382513,0.00019726,2]
[374637338,1753391449461,-5720.52,0.00019726,2]
[374637339,1753391449561,-500.0,0.0001979,2]
[374637340,1753391449573,-1875.26475101,0.00019797,2]
[374637341,1753391449583,-151.0,0.000198,2]
[374637342,1753391449593,-500.0,0.00019883,2]
[374637343,1753391449603,-500.0,0.00019883,2]
[374637344,1753391449613,-151.0,0.000199,2]
[374637345,1753391449627,-3697.8058874,0.000199,2]
[374637346,1753391449640,-534.42479984,0.0001993,2]
[374637347,1753391449649,-177.0,0.00019945,3]
[374637348,1753391449658,-500.0,0.0001997,2]
[374637349,1753391449669,-500.0,0.00019973,2]
[374637350,1753391449679,-500.0,0.00019973,2]
[374637351,1753391449688,-500.0,0.00019973,2]
[374637352,1753391449697,-500.0,0.00019973,2]
[374637353,1753391449709,-500.0,0.00019973,2]
[374637354,1753391449718,-500.0,0.00019973,2]
[374637355,1753391449727,-500.0,0.00019973,2]
[374637356,1753391449737,-500.0,0.00019973,2]
[374637357,1753391449746,-500.0,0.00019973,2]
[374637358,1753391449756,-500.0,0.00019973,2]
[374637359,1753391449765,-500.0,0.00019973,2]
[374637360,1753391449777,-500.0,0.00019973,2]
[374637361,1753391449787,-355.55508519,0.00019973,2]
[374637362,1753391449796,-500.0,0.00019973,2]
[374637363,1753391449806,-562.39892855,0.00019973,2]
[374637364,1753391449815,-500.0,0.00019973,2]
[374637365,1753391449825,-500.0,0.00019973,2]
[374637366,1753391449834,-500.0,0.00019973,2]
[374637367,1753391449844,-500.0,0.00019973,2]
[374637368,1753391449854,-505.53775134,0.00019973,2]
[374637369,1753391449864,-151.0,0.0001999,2]
[374637370,1753391449873,-100000.0,0.0001999,2]
[374637371,1753391449884,-151.0,0.0001999,2]
[374637372,1753391449894,-151.0,0.0001999,2]
[374637373,1753391449904,-932.44538362,0.00019997,2]
[374637374,1753391449914,-412.59052775,0.0002,2]
[374637375,1753391449923,-151.0,0.0002,2]
[374637376,1753391449934,-151.0,0.0002,2]
[374637377,1753391449944,-289.4233495,0.0002,2]
[374637378,1753391449953,-151.0,0.0002,2]
[374637379,1753391449963,-500.0,0.0002,2]
[374637380,1753391449972,-982.0,0.0002,2]
[374637381,1753391449982,-151.0,0.0002,2]
[374637382,1753391449991,-151.0,0.0002,2]
[374637383,1753391450001,-633.69002538,0.0002,2]
[374637384,1753391450011,-283.73164874,0.0002,2]
[374637385,1753391450020,-876.0,0.0002,2]
[374637386,1753391450032,-500.0,0.0002,2]
[374637387,1753391450041,-500.0,0.0002,2]
[374637388,1753391450050,-460.0,0.0002,2]
[374637389,1753391450059,-460.0,0.0002,2]
[374637390,1753391450068,-460.0,0.0002,2]
[374637391,1753391450077,-460.0,0.0002,2]
[374637392,1753391450087,-460.0,0.0002,2]
[374637393,1753391450097,-192.46625259,0.0002,2]
[374637394,1753391450106,-460.0,0.0002,2]
[374637395,1753391450116,-493.47,0.0002,2]
[374637396,1753391450126,-173.613,0.0002,2]
[374637397,1753391450135,-460.0,0.0002,2]
[374637398,1753391450145,-395.66770351,0.0002,2]
[374637399,1753391450193,-64.33229649,0.0002,2]
[374637400,1753391450203,-460.0,0.0002,2]
[374637401,1753391450214,-206.64770271,0.0002,2]
[374637402,1753391450226,-253.35229729,0.0002,2]
[374637403,1753391450236,-460.0,0.0002,2]
[374637404,1753391450246,-460.0,0.0002,2]
[374637405,1753391450256,-460.0,0.0002,2]
[374637406,1753391450267,-670.24,0.0002,2]
[374637407,1753391450277,-460.0,0.0002,2]
[374637408,1753391450287,-234.20491421,0.0002,2]
[374637409,1753391450297,-460.0,0.0002,2]
[374637410,1753391450307,-460.0,0.0002,2]
[374637411,1753391450317,-453.40718438,0.0002,2]
[374637412,1753391450326,-772.42,0.0002,2]
[374637413,1753391450336,-492.13,0.0002,2]
[374637414,1753391450346,-460.0,0.0002,2]
[374637415,1753391450356,-1114.52,0.0002,2]
[374637416,1753391450365,-460.0,0.0002,2]
[374637417,1753391450375,-460.0,0.0002,2]
[374637418,1753391450385,-460.0,0.0002,2]
[374637419,1753391450395,-435.68310305,0.0002,2]
[374637420,1753391450604,-460.0,0.00019178,2]
[374637421,1753391450614,-460.0,0.00019178,2]
[374637422,1753391450624,-1205.1,0.00019452,2]
[374637423,1753391450638,-479.25,0.00019452,2]
[374637424,1753391450648,-469.64,0.00019452,2]
[374637425,1753391450658,-1205.1,0.00019726,2]
[374637426,1753391450668,-479.25,0.00019726,2]